[Event "Titled Tuesday Blitz November 22 Late 2022"]
[White "Rodriguez Santiago, Jaime"]
[Black "Gonzalez, Francisco Silva"]
[WhiteFideId "3100898"]
[BlackFideId "1512285"]
[WhiteElo "2025"]
[BlackElo "2159"]
[Result "0-1"]
[Round "08"]
[TimeControl "180+1"]
[Date "2022.11.23"]
[WhiteClock "0:00:09"]
[BlackClock "0:00:59"]

1. c4 {[%clk 0:03:00]}  e6 {[%clk 0:02:57]} 2. Nf3 {[%clk 0:03:00]}  d5 {[%clk 0:02:57]} 3. g3 {[%clk 0:03:00]}  a6 {[%clk 0:02:56]} 4. Bg2 {[%clk 0:03:00]}  dxc4 {[%clk 0:02:56]} 5. a4 {[%clk 0:02:59]}  Nc6 {[%clk 0:02:56]} 6. O-O {[%clk 0:02:58]}  e5 {[%clk 0:02:56]} 7. Qc2 {[%clk 0:02:52]}  Nf6 {[%clk 0:02:54]} 8. Na3 {[%clk 0:02:49]}  Bxa3 {[%clk 0:02:46]} 9. Rxa3 {[%clk 0:02:48]}  Be6 {[%clk 0:02:43]} 10. a5 {[%clk 0:02:29]}  O-O {[%clk 0:02:42]} 11. Ng5 {[%clk 0:02:23]}  Bd5 {[%clk 0:02:41]} 12. e4 {[%clk 0:02:12]}  Nd4 {[%clk 0:02:40]} 13. Qd1 {[%clk 0:01:55]}  Bc6 {[%clk 0:02:40]} 14. Rc3 {[%clk 0:01:47]}  Bb5 {[%clk 0:02:33]} 15. f4 {[%clk 0:01:39]}  Re8 {[%clk 0:02:31]} 16. h3 {[%clk 0:01:25]}  h6 {[%clk 0:02:28]} 17. Nf3 {[%clk 0:01:25]}  exf4 {[%clk 0:02:21]} 18. e5 {[%clk 0:01:16]}  Nxf3+ {[%clk 0:02:19]} 19. Qxf3 {[%clk 0:01:10]}  Qd4+ {[%clk 0:02:16]} 20. Kh1 {[%clk 0:01:08]}  Qxe5 {[%clk 0:02:09]} 21. gxf4 {[%clk 0:01:04]}  Qf5 {[%clk 0:02:01]} 22. Qxb7 {[%clk 0:01:00]}  c6 {[%clk 0:02:01]} 23. Qb6 {[%clk 0:00:48]}  Re2 {[%clk 0:01:58]} 24. Rf2 {[%clk 0:00:45]}  Re1+ {[%clk 0:01:55]} 25. Kh2 {[%clk 0:00:45]}  Rae8 {[%clk 0:01:53]} 26. Rg3 {[%clk 0:00:43]}  Ne4 {[%clk 0:01:44]} 27. Bxe4 {[%clk 0:00:32]}  Qxe4 {[%clk 0:01:44]} 28. Rfg2 {[%clk 0:00:28]}  Qxf4 {[%clk 0:01:17]} 29. d3 {[%clk 0:00:09]}  Rxc1 {[%clk 0:01:15]} 30. dxc4 {[%clk 0:00:09]}  Rxc4 {[%clk 0:01:12]} 31. Qg1 {[%clk 0:00:09]}  Rc2 {[%clk 0:01:11]} 32. Kh1 {[%clk 0:00:09]}  Rxg2 {[%clk 0:01:03]} 33. Rxg2 {[%clk 0:00:09]}  g5 {[%clk 0:00:59]} 0-1


[Site "https://www.chess.com"]

[Event "Titled Tuesday Blitz November 22 Late 2022"]
[White "Romanchuk, Viktor"]
[Black "Graif, William"]
[WhiteFideId "14109271"]
[BlackFideId "2609835"]
[WhiteElo "2242"]
[BlackElo "2205"]
[Result "1-0"]
[Round "08"]
[TimeControl "180+1"]
[Date "2022.11.23"]
[WhiteClock "0:00:03"]
[BlackClock "0:00:02"]

1. d4 {[%clk 0:03:00]}  Nf6 {[%clk 0:02:55]} 2. c4 {[%clk 0:03:00]}  e5 {[%clk 0:02:55]} 3. dxe5 {[%clk 0:03:00]}  Ng4 {[%clk 0:02:55]} 4. Bf4 {[%clk 0:03:00]}  Nc6 {[%clk 0:02:55]} 5. Nf3 {[%clk 0:02:59]}  f6 {[%clk 0:02:56]} 6. exf6 {[%clk 0:01:35]}  Qxf6 {[%clk 0:02:53]} 7. Qd2 {[%clk 0:01:35]}  Bb4 {[%clk 0:02:53]} 8. Nc3 {[%clk 0:01:33]}  Bxc3 {[%clk 0:02:52]} 9. bxc3 {[%clk 0:01:29]}  O-O {[%clk 0:02:51]} 10. e3 {[%clk 0:01:26]}  d6 {[%clk 0:02:42]} 11. c5 {[%clk 0:01:24]}  dxc5 {[%clk 0:02:24]} 12. Bxc7 {[%clk 0:01:24]}  Be6 {[%clk 0:02:06]} 13. Be2 {[%clk 0:01:24]}  Nce5 {[%clk 0:01:53]} 14. O-O {[%clk 0:01:12]}  Rf7 {[%clk 0:01:17]} 15. Bxe5 {[%clk 0:00:19]}  Nxe5 {[%clk 0:01:17]} 16. Nxe5 {[%clk 0:00:16]}  Qxe5 {[%clk 0:01:18]} 17. f4 {[%clk 0:00:15]}  Qc7 {[%clk 0:00:53]} 18. e4 {[%clk 0:00:13]}  Rd8 {[%clk 0:00:32]} 19. Qe3 {[%clk 0:00:12]}  g6 {[%clk 0:00:26]} 20. a4 {[%clk 0:00:09]}  b6 {[%clk 0:00:21]} 21. h3 {[%clk 0:00:08]}  Rfd7 {[%clk 0:00:18]} 22. f5 {[%clk 0:00:07]}  Bf7 {[%clk 0:00:18]} 23. e5 {[%clk 0:00:07]}  gxf5 {[%clk 0:00:16]} 24. e6 {[%clk 0:00:07]}  Re7 {[%clk 0:00:11]} 25. exf7+ {[%clk 0:00:07]}  Rxf7 {[%clk 0:00:12]} 26. Qf4 {[%clk 0:00:07]}  Qxf4 {[%clk 0:00:09]} 27. Rxf4 {[%clk 0:00:07]}  Re7 {[%clk 0:00:09]} 28. Bf3 {[%clk 0:00:06]}  Rd2 {[%clk 0:00:09]} 29. Rxf5 {[%clk 0:00:07]}  Re3 {[%clk 0:00:09]} 30. a5 {[%clk 0:00:06]}  Rxc3 {[%clk 0:00:09]} 31. axb6 {[%clk 0:00:07]}  axb6 {[%clk 0:00:09]} 32. Ra8+ {[%clk 0:00:06]}  Kg7 {[%clk 0:00:09]} 33. Ra7+ {[%clk 0:00:06]}  Kg6 {[%clk 0:00:09]} 34. Re5 {[%clk 0:00:07]}  Rc1+ {[%clk 0:00:07]} 35. Kh2 {[%clk 0:00:07]}  c4 {[%clk 0:00:05]} 36. Re6+ {[%clk 0:00:06]}  Kf5 {[%clk 0:00:05]} 37. Rxb6 {[%clk 0:00:06]}  c3 {[%clk 0:00:05]} 38. Rc6 {[%clk 0:00:06]}  c2 {[%clk 0:00:05]} 39. Rac7 {[%clk 0:00:05]}  Kf4 {[%clk 0:00:04]} 40. Rc4+ {[%clk 0:00:05]}  Ke3 {[%clk 0:00:04]} 41. Kg3 {[%clk 0:00:05]}  Kd3 {[%clk 0:00:04]} 42. Be4+ {[%clk 0:00:05]}  Ke3 {[%clk 0:00:03]} 43. Bxh7 {[%clk 0:00:05]}  Rg1 {[%clk 0:00:02]} 44. Be4 {[%clk 0:00:03]} 1-0


[Site "https://www.chess.com"]

[Event "Titled Tuesday Blitz November 22 Late 2022"]
[White "Rose, Felix"]
[Black "D`Arruda, Ricardo D."]
[WhiteFideId "5105722"]
[BlackFideId "100692"]
[WhiteElo "2039"]
[BlackElo "2507"]
[Result "1-0"]
[Round "08"]
[TimeControl "180+1"]
[Date "2022.11.23"]
[WhiteClock "0:00:13"]
[BlackClock "0:00:07"]

1. e4 {[%clk 0:02:58]}  c5 {[%clk 0:02:56]} 2. Nf3 {[%clk 0:02:58]}  Nc6 {[%clk 0:02:56]} 3. d4 {[%clk 0:02:59]}  cxd4 {[%clk 0:02:55]} 4. Nxd4 {[%clk 0:03:00]}  e5 {[%clk 0:02:56]} 5. Nb5 {[%clk 0:03:00]}  a6 {[%clk 0:02:56]} 6. Nd6+ {[%clk 0:02:59]}  Bxd6 {[%clk 0:02:56]} 7. Qxd6 {[%clk 0:03:00]}  Qe7 {[%clk 0:02:57]} 8. Qxe7+ {[%clk 0:02:57]}  Ngxe7 {[%clk 0:02:58]} 9. Nc3 {[%clk 0:02:57]}  Nb4 {[%clk 0:02:58]} 10. Bd3 {[%clk 0:02:47]}  d5 {[%clk 0:02:57]} 11. Nxd5 {[%clk 0:02:44]}  Nexd5 {[%clk 0:02:53]} 12. exd5 {[%clk 0:02:44]}  Nxd3+ {[%clk 0:02:53]} 13. cxd3 {[%clk 0:02:44]}  Bf5 {[%clk 0:02:53]} 14. f4 {[%clk 0:02:30]}  O-O-O {[%clk 0:02:47]} 15. fxe5 {[%clk 0:01:59]}  Rxd5 {[%clk 0:02:46]} 16. O-O {[%clk 0:01:57]}  Rxe5 {[%clk 0:02:38]} 17. Bf4 {[%clk 0:01:53]}  Rd5 {[%clk 0:02:21]} 18. Rac1+ {[%clk 0:01:50]}  Kd8 {[%clk 0:02:20]} 19. d4 {[%clk 0:01:42]}  Be6 {[%clk 0:02:13]} 20. Bc7+ {[%clk 0:01:36]}  Kd7 {[%clk 0:02:09]} 21. Bb6 {[%clk 0:01:26]}  Rc8 {[%clk 0:01:54]} 22. Rxc8 {[%clk 0:01:25]}  Kxc8 {[%clk 0:01:55]} 23. Rc1+ {[%clk 0:01:25]}  Kb8 {[%clk 0:01:53]} 24. a4 {[%clk 0:01:23]}  Rd7 {[%clk 0:01:44]} 25. a5 {[%clk 0:01:19]}  Bd5 {[%clk 0:01:44]} 26. Re1 {[%clk 0:01:14]}  Be6 {[%clk 0:01:44]} 27. b4 {[%clk 0:01:11]}  Rd5 {[%clk 0:01:38]} 28. h3 {[%clk 0:01:02]}  Kc8 {[%clk 0:01:34]} 29. Rc1+ {[%clk 0:00:58]}  Kb8 {[%clk 0:01:33]} 30. Kh2 {[%clk 0:00:52]}  Rd7 {[%clk 0:01:19]} 31. Re1 {[%clk 0:00:47]}  Rd6 {[%clk 0:01:15]} 32. Kg3 {[%clk 0:00:41]}  Rc6 {[%clk 0:01:05]} 33. Re5 {[%clk 0:00:24]}  Rd6 {[%clk 0:00:58]} 34. Kf2 {[%clk 0:00:21]}  Kc8 {[%clk 0:00:53]} 35. Rc5+ {[%clk 0:00:20]}  Rc6 {[%clk 0:00:52]} 36. Rg5 {[%clk 0:00:20]}  g6 {[%clk 0:00:47]} 37. Re5 {[%clk 0:00:20]}  Kd7 {[%clk 0:00:42]} 38. d5 {[%clk 0:00:19]}  Rc2+ {[%clk 0:00:42]} 39. Ke3 {[%clk 0:00:19]}  Bf5 {[%clk 0:00:41]} 40. Bc5 {[%clk 0:00:18]}  Rxg2 {[%clk 0:00:25]} 41. Re7+ {[%clk 0:00:18]}  Kd8 {[%clk 0:00:25]} 42. Rxf7 {[%clk 0:00:15]}  Rg3+ {[%clk 0:00:25]} 43. Kf4 {[%clk 0:00:16]}  Rxh3 {[%clk 0:00:26]} 44. Ke5 {[%clk 0:00:16]}  Bc8 {[%clk 0:00:19]} 45. Rf8+ {[%clk 0:00:16]}  Kd7 {[%clk 0:00:19]} 46. Rf7+ {[%clk 0:00:16]}  Ke8 {[%clk 0:00:18]} 47. Re7+ {[%clk 0:00:15]}  Kd8 {[%clk 0:00:19]} 48. Kd6 {[%clk 0:00:13]}  Bf5 {[%clk 0:00:07]} 49. Bb6+ {[%clk 0:00:13]}  Kc8 {[%clk 0:00:07]} 50. Re8# {[%clk 0:00:13]} 1-0


[Site "https://www.chess.com"]

[Event "Titled Tuesday Blitz November 22 Late 2022"]
[White "Rosen, Eric"]
[Black "Reprintsev, Alexander"]
[WhiteFideId "2032562"]
[BlackFideId "14100541"]
[WhiteElo "2362"]
[BlackElo "2230"]
[Result "1-0"]
[Round "08"]
[TimeControl "180+1"]
[Date "2022.11.23"]
[WhiteClock "0:00:50"]
[BlackClock "0:00:03"]

1. d4 {[%clk 0:03:00]}  d5 {[%clk 0:02:54]} 2. Bf4 {[%clk 0:03:01]}  Nf6 {[%clk 0:02:53]} 3. e3 {[%clk 0:03:02]}  c5 {[%clk 0:02:52]} 4. Nf3 {[%clk 0:03:02]}  e6 {[%clk 0:02:39]} 5. Nbd2 {[%clk 0:02:56]}  Bd7 {[%clk 0:02:32]} 6. c3 {[%clk 0:02:54]}  Qb6 {[%clk 0:02:28]} 7. Qb3 {[%clk 0:02:50]}  Bc6 {[%clk 0:02:18]} 8. Be2 {[%clk 0:02:34]}  Nbd7 {[%clk 0:02:17]} 9. O-O {[%clk 0:02:34]}  Be7 {[%clk 0:02:17]} 10. h3 {[%clk 0:02:34]}  O-O {[%clk 0:02:16]} 11. Ne5 {[%clk 0:02:35]}  Rfc8 {[%clk 0:02:07]} 12. Nxc6 {[%clk 0:02:29]}  bxc6 {[%clk 0:02:05]} 13. Rfe1 {[%clk 0:02:20]}  a5 {[%clk 0:01:52]} 14. Qxb6 {[%clk 0:02:02]}  Nxb6 {[%clk 0:01:51]} 15. Bd3 {[%clk 0:02:03]}  Ra7 {[%clk 0:01:46]} 16. e4 {[%clk 0:02:00]}  cxd4 {[%clk 0:01:45]} 17. cxd4 {[%clk 0:02:00]}  dxe4 {[%clk 0:01:40]} 18. Nxe4 {[%clk 0:01:57]}  Nxe4 {[%clk 0:01:39]} 19. Bxe4 {[%clk 0:01:56]}  Nd5 {[%clk 0:01:38]} 20. Bg3 {[%clk 0:01:47]}  Rb7 {[%clk 0:01:38]} 21. b3 {[%clk 0:01:42]}  a4 {[%clk 0:01:37]} 22. Rac1 {[%clk 0:01:24]}  Bb4 {[%clk 0:01:16]} 23. Bxd5 {[%clk 0:01:03]}  Bxe1 {[%clk 0:01:00]} 24. Bc4 {[%clk 0:01:03]}  Bd2 {[%clk 0:00:49]} 25. Rc2 {[%clk 0:01:03]}  axb3 {[%clk 0:00:44]} 26. axb3 {[%clk 0:01:03]}  Bb4 {[%clk 0:00:13]} 27. Ba6 {[%clk 0:01:03]}  Rbc7 {[%clk 0:00:13]} 28. Rc4 {[%clk 0:01:04]}  Be7 {[%clk 0:00:12]} 29. b4 {[%clk 0:01:02]}  Kf8 {[%clk 0:00:10]} 30. b5 {[%clk 0:01:01]}  Ke8 {[%clk 0:00:09]} 31. b6 {[%clk 0:00:54]}  Ra8 {[%clk 0:00:03]} 32. bxc7 {[%clk 0:00:50]} 1-0


[Site "https://www.chess.com"]

[Event "Titled Tuesday Blitz November 22 Late 2022"]
[White "Rustemov, Alexander"]
[Black "Kilic, Eray"]
[WhiteFideId "4119002"]
[BlackFideId "44517173"]
[WhiteElo "2876"]
[BlackElo "2328"]
[Result "1-0"]
[Round "08"]
[TimeControl "180+1"]
[Date "2022.11.22"]
[WhiteClock "0:00:24"]
[BlackClock "0:00:13"]

1. d4 {[%clk 0:03:00]}  Nf6 {[%clk 0:03:00]} 2. c4 {[%clk 0:03:00]}  e6 {[%clk 0:03:00]} 3. Nf3 {[%clk 0:03:01]}  b6 {[%clk 0:03:00]} 4. a3 {[%clk 0:03:00]}  Bb7 {[%clk 0:03:01]} 5. Nc3 {[%clk 0:03:01]}  Be7 {[%clk 0:03:01]} 6. Bg5 {[%clk 0:03:00]}  O-O {[%clk 0:03:01]} 7. e3 {[%clk 0:02:59]}  d6 {[%clk 0:03:00]} 8. Be2 {[%clk 0:02:53]}  Nbd7 {[%clk 0:03:00]} 9. O-O {[%clk 0:02:53]}  Ne4 {[%clk 0:02:56]} 10. Bxe7 {[%clk 0:02:51]}  Qxe7 {[%clk 0:02:57]} 11. Nxe4 {[%clk 0:02:44]}  Bxe4 {[%clk 0:02:58]} 12. Nd2 {[%clk 0:02:43]}  Bb7 {[%clk 0:02:58]} 13. Bf3 {[%clk 0:02:42]}  Bxf3 {[%clk 0:02:55]} 14. Nxf3 {[%clk 0:02:42]}  e5 {[%clk 0:02:52]} 15. Qc2 {[%clk 0:02:40]}  f5 {[%clk 0:02:49]} 16. dxe5 {[%clk 0:02:31]}  Nxe5 {[%clk 0:02:46]} 17. Nxe5 {[%clk 0:02:29]}  Qxe5 {[%clk 0:02:47]} 18. Rad1 {[%clk 0:02:26]}  Rae8 {[%clk 0:02:43]} 19. g3 {[%clk 0:02:23]}  Rf6 {[%clk 0:02:40]} 20. Rd4 {[%clk 0:02:22]}  Rh6 {[%clk 0:02:34]} 21. b4 {[%clk 0:02:17]}  Qe6 {[%clk 0:02:30]} 22. c5 {[%clk 0:02:14]}  bxc5 {[%clk 0:02:26]} 23. bxc5 {[%clk 0:02:14]}  f4 {[%clk 0:02:15]} 24. exf4 {[%clk 0:02:04]}  Qh3 {[%clk 0:02:14]} 25. f3 {[%clk 0:02:04]}  dxc5 {[%clk 0:02:13]} 26. Re4 {[%clk 0:01:56]}  Rxe4 {[%clk 0:01:16]} 27. fxe4 {[%clk 0:01:55]}  Qh5 {[%clk 0:01:12]} 28. Rf2 {[%clk 0:01:41]}  Rd6 {[%clk 0:01:03]} 29. Kg2 {[%clk 0:01:38]}  h6 {[%clk 0:01:02]} 30. e5 {[%clk 0:01:36]}  Rd5 {[%clk 0:01:02]} 31. Qe4 {[%clk 0:01:31]}  c6 {[%clk 0:01:00]} 32. e6 {[%clk 0:01:30]}  Qe8 {[%clk 0:00:59]} 33. f5 {[%clk 0:01:28]}  Rd6 {[%clk 0:00:54]} 34. g4 {[%clk 0:01:23]}  Rd4 {[%clk 0:00:50]} 35. Qf3 {[%clk 0:01:22]}  Qe7 {[%clk 0:00:48]} 36. h3 {[%clk 0:01:20]}  h5 {[%clk 0:00:48]} 37. gxh5 {[%clk 0:01:06]}  c4 {[%clk 0:00:47]} 38. Qg3 {[%clk 0:01:00]}  Qf6 {[%clk 0:00:42]} 39. Qg6 {[%clk 0:00:57]}  Qe5 {[%clk 0:00:28]} 40. h6 {[%clk 0:00:49]}  Qd5+ {[%clk 0:00:28]} 41. Kh2 {[%clk 0:00:48]}  Qe5+ {[%clk 0:00:29]} 42. Qg3 {[%clk 0:00:47]}  Qxg3+ {[%clk 0:00:29]} 43. Kxg3 {[%clk 0:00:47]}  c3 {[%clk 0:00:28]} 44. hxg7 {[%clk 0:00:44]}  Rd3+ {[%clk 0:00:28]} 45. Kf4 {[%clk 0:00:42]}  Kxg7 {[%clk 0:00:19]} 46. Ke5 {[%clk 0:00:40]}  Rd2 {[%clk 0:00:19]} 47. f6+ {[%clk 0:00:39]}  Kf8 {[%clk 0:00:19]} 48. Rf3 {[%clk 0:00:38]}  c2 {[%clk 0:00:19]} 49. Rc3 {[%clk 0:00:38]}  Re2+ {[%clk 0:00:18]} 50. Kd6 {[%clk 0:00:34]}  Rd2+ {[%clk 0:00:15]} 51. Kxc6 {[%clk 0:00:32]}  Re2 {[%clk 0:00:16]} 52. Kd5 {[%clk 0:00:31]}  Rd2+ {[%clk 0:00:16]} 53. Ke5 {[%clk 0:00:31]}  Re2+ {[%clk 0:00:16]} 54. Kf5 {[%clk 0:00:32]}  Rf2+ {[%clk 0:00:17]} 55. Kg5 {[%clk 0:00:31]}  Rg2+ {[%clk 0:00:17]} 56. Kh4 {[%clk 0:00:29]}  Kg8 {[%clk 0:00:16]} 57. Rc8+ {[%clk 0:00:28]}  Kh7 {[%clk 0:00:17]} 58. f7 {[%clk 0:00:26]}  Rf2 {[%clk 0:00:13]} 59. e7 {[%clk 0:00:25]}  c1=Q {[%clk 0:00:13]} 60. Rxc1 {[%clk 0:00:24]} 1-0


[Site "https://www.chess.com"]

[Event "Titled Tuesday Blitz November 22 Late 2022"]
[White "Sanchez, Robert"]
[Black "Arbunic Castro, Giovanna"]
[WhiteFideId "2034360"]
[BlackFideId "3400549"]
[WhiteElo "2312"]
[BlackElo "1997"]
[Result "1-0"]
[Round "08"]
[TimeControl "180+1"]
[Date "2022.11.23"]
[WhiteClock "0:00:08"]
[BlackClock "0:00:02"]

1. e4 {[%clk 0:03:00]}  g6 {[%clk 0:02:59]} 2. d4 {[%clk 0:03:00]}  Bg7 {[%clk 0:02:59]} 3. Nc3 {[%clk 0:03:01]}  c5 {[%clk 0:02:59]} 4. Nf3 {[%clk 0:03:01]}  Qa5 {[%clk 0:02:59]} 5. Be2 {[%clk 0:02:52]}  Nf6 {[%clk 0:02:55]} 6. O-O {[%clk 0:02:48]}  cxd4 {[%clk 0:02:51]} 7. Nxd4 {[%clk 0:02:46]}  O-O {[%clk 0:02:51]} 8. Nb3 {[%clk 0:02:45]}  Qd8 {[%clk 0:02:48]} 9. f4 {[%clk 0:02:35]}  d6 {[%clk 0:02:47]} 10. Bf3 {[%clk 0:02:34]}  Nc6 {[%clk 0:02:45]} 11. Be3 {[%clk 0:02:33]}  h5 {[%clk 0:02:41]} 12. h3 {[%clk 0:02:32]}  Be6 {[%clk 0:02:29]} 13. Qd2 {[%clk 0:02:29]}  Qd7 {[%clk 0:02:18]} 14. Rad1 {[%clk 0:02:25]}  Rfd8 {[%clk 0:02:16]} 15. Qe2 {[%clk 0:02:16]}  Qc8 {[%clk 0:02:07]} 16. f5 {[%clk 0:02:13]}  Bd7 {[%clk 0:01:55]} 17. fxg6 {[%clk 0:02:08]}  fxg6 {[%clk 0:01:54]} 18. Nd5 {[%clk 0:02:02]}  Nxd5 {[%clk 0:01:48]} 19. exd5 {[%clk 0:02:02]}  Ne5 {[%clk 0:01:47]} 20. Bg5 {[%clk 0:02:00]}  Re8 {[%clk 0:01:27]} 21. Be4 {[%clk 0:01:57]}  a6 {[%clk 0:01:25]} 22. Rf2 {[%clk 0:01:24]}  Bb5 {[%clk 0:01:20]} 23. Qe1 {[%clk 0:01:14]}  Nf7 {[%clk 0:01:04]} 24. Bc1 {[%clk 0:01:07]}  Ne5 {[%clk 0:01:03]} 25. Nd4 {[%clk 0:01:05]}  Bd7 {[%clk 0:01:00]} 26. Bf4 {[%clk 0:00:58]}  Rf8 {[%clk 0:00:57]} 27. Bxe5 {[%clk 0:00:53]}  Bxe5 {[%clk 0:00:56]} 28. Bxg6 {[%clk 0:00:49]}  Rxf2 {[%clk 0:00:32]} 29. Qxf2 {[%clk 0:00:47]}  Be8 {[%clk 0:00:26]} 30. Bxe8 {[%clk 0:00:38]}  Qxe8 {[%clk 0:00:26]} 31. Ne6 {[%clk 0:00:37]}  Qg6 {[%clk 0:00:24]} 32. c3 {[%clk 0:00:26]}  Bg3 {[%clk 0:00:17]} 33. Qf3 {[%clk 0:00:23]}  Rc8 {[%clk 0:00:16]} 34. Rf1 {[%clk 0:00:20]}  h4 {[%clk 0:00:15]} 35. a4 {[%clk 0:00:19]}  b5 {[%clk 0:00:09]} 36. axb5 {[%clk 0:00:18]}  axb5 {[%clk 0:00:08]} 37. b3 {[%clk 0:00:13]}  b4 {[%clk 0:00:08]} 38. cxb4 {[%clk 0:00:12]}  Rb8 {[%clk 0:00:07]} 39. b5 {[%clk 0:00:12]}  Kh8 {[%clk 0:00:06]} 40. b6 {[%clk 0:00:09]}  Be5 {[%clk 0:00:02]} 41. b7 {[%clk 0:00:08]} 1-0


[Site "https://www.chess.com"]

[Event "Titled Tuesday Blitz November 22 Late 2022"]
[White "Simonovic, Miroslav"]
[Black "chess50years"]
[WhiteFideId "919152"]
[WhiteElo "2043"]
[BlackElo "2068"]
[Result "1-0"]
[Round "08"]
[TimeControl "180+1"]
[Date "2022.11.23"]
[WhiteClock "0:00:05"]
[BlackClock "0:00:17"]

1. d4 {[%clk 0:03:00]}  Nf6 {[%clk 0:02:58]} 2. Bg5 {[%clk 0:03:01]}  d5 {[%clk 0:02:56]} 3. Bxf6 {[%clk 0:03:01]}  gxf6 {[%clk 0:02:56]} 4. e3 {[%clk 0:03:02]}  Bf5 {[%clk 0:02:54]} 5. Bd3 {[%clk 0:03:01]}  Bg6 {[%clk 0:02:53]} 6. h4 {[%clk 0:03:01]}  e6 {[%clk 0:02:50]} 7. h5 {[%clk 0:02:58]}  Bxd3 {[%clk 0:02:50]} 8. Qxd3 {[%clk 0:02:59]}  c6 {[%clk 0:02:48]} 9. Nd2 {[%clk 0:02:51]}  Qb6 {[%clk 0:02:46]} 10. O-O-O {[%clk 0:02:49]}  Qa6 {[%clk 0:02:40]} 11. Qb3 {[%clk 0:02:42]}  Bd6 {[%clk 0:02:39]} 12. c4 {[%clk 0:02:41]}  Nd7 {[%clk 0:02:36]} 13. c5 {[%clk 0:02:35]}  Be7 {[%clk 0:02:33]} 14. e4 {[%clk 0:02:28]}  b6 {[%clk 0:02:25]} 15. cxb6 {[%clk 0:02:24]}  axb6 {[%clk 0:02:21]} 16. Kb1 {[%clk 0:02:24]}  Qa4 {[%clk 0:02:17]} 17. exd5 {[%clk 0:02:22]}  cxd5 {[%clk 0:02:14]} 18. Ne2 {[%clk 0:02:06]}  Rg8 {[%clk 0:02:07]} 19. g3 {[%clk 0:01:55]}  Qxb3 {[%clk 0:02:03]} 20. Nxb3 {[%clk 0:01:56]}  Bd6 {[%clk 0:01:59]} 21. Rc1 {[%clk 0:01:50]}  Ke7 {[%clk 0:01:50]} 22. f4 {[%clk 0:01:49]}  Rgc8 {[%clk 0:01:48]} 23. Rxc8 {[%clk 0:01:39]}  Rxc8 {[%clk 0:01:49]} 24. Rc1 {[%clk 0:01:39]}  Rxc1+ {[%clk 0:01:48]} 25. Kxc1 {[%clk 0:01:39]}  f5 {[%clk 0:01:48]} 26. Kc2 {[%clk 0:01:35]}  Nf6 {[%clk 0:01:47]} 27. h6 {[%clk 0:01:24]}  Ng4 {[%clk 0:01:46]} 28. a4 {[%clk 0:01:21]}  Kd7 {[%clk 0:01:44]} 29. a5 {[%clk 0:01:21]}  bxa5 {[%clk 0:01:44]} 30. Nxa5 {[%clk 0:01:22]}  Nxh6 {[%clk 0:01:39]} 31. Nb3 {[%clk 0:01:08]}  Ng4 {[%clk 0:01:37]} 32. Nd2 {[%clk 0:01:09]}  Bb4 {[%clk 0:01:30]} 33. Nf3 {[%clk 0:01:09]}  f6 {[%clk 0:01:30]} 34. Kb3 {[%clk 0:01:04]}  Ba5 {[%clk 0:01:27]} 35. Ka4 {[%clk 0:01:03]}  Bb6 {[%clk 0:01:25]} 36. Kb5 {[%clk 0:01:01]}  Kc7 {[%clk 0:01:20]} 37. b4 {[%clk 0:00:53]}  Ne3 {[%clk 0:01:19]} 38. Ka6 {[%clk 0:00:46]}  Nc2 {[%clk 0:01:14]} 39. Kb5 {[%clk 0:00:37]}  Kb7 {[%clk 0:01:12]} 40. Ka4 {[%clk 0:00:36]}  Ne3 {[%clk 0:01:05]} 41. Kb3 {[%clk 0:00:35]}  Nc4 {[%clk 0:01:03]} 42. Nh2 {[%clk 0:00:18]}  h5 {[%clk 0:00:55]} 43. Nf3 {[%clk 0:00:18]}  Kc6 {[%clk 0:00:52]} 44. Nc3 {[%clk 0:00:14]}  Bc7 {[%clk 0:00:49]} 45. Na4 {[%clk 0:00:12]}  Bd6 {[%clk 0:00:43]} 46. Nc5 {[%clk 0:00:12]}  Bxc5 {[%clk 0:00:41]} 47. bxc5 {[%clk 0:00:10]}  Ne3 {[%clk 0:00:39]} 48. Ng1 {[%clk 0:00:08]}  Kb5 {[%clk 0:00:34]} 49. Ne2 {[%clk 0:00:06]}  Nc4 {[%clk 0:00:27]} 50. Kc3 {[%clk 0:00:06]}  Na5 {[%clk 0:00:23]} 51. Kd3 {[%clk 0:00:06]}  Kb4 {[%clk 0:00:22]} 52. Nc3 {[%clk 0:00:06]}  Nc6 {[%clk 0:00:21]} 53. Nd1 {[%clk 0:00:06]}  Kb3 {[%clk 0:00:20]} 54. Ne3 {[%clk 0:00:05]}  Nb4+ {[%clk 0:00:19]} 55. Kd2 {[%clk 0:00:05]}  Na2 {[%clk 0:00:17]} 56. c6 {[%clk 0:00:05]} 1-0


[Site "https://www.chess.com"]

[Event "Titled Tuesday Blitz November 22 Late 2022"]
[White "Suder, Jakub"]
[Black "Boruchovsky, Avital"]
[WhiteFideId "1195310"]
[BlackFideId "2800055"]
[WhiteElo "2243"]
[BlackElo "2458"]
[Result "0-1"]
[Round "08"]
[TimeControl "180+1"]
[Date "2022.11.22"]
[WhiteClock "0:00:01"]
[BlackClock "0:00:28"]

1. d4 {[%clk 0:03:00]}  d5 {[%clk 0:02:57]} 2. c4 {[%clk 0:02:56]}  e6 {[%clk 0:02:57]} 3. Nc3 {[%clk 0:02:56]}  c5 {[%clk 0:02:57]} 4. cxd5 {[%clk 0:02:48]}  cxd4 {[%clk 0:02:57]} 5. Qxd4 {[%clk 0:02:41]}  Nc6 {[%clk 0:02:55]} 6. Qa4 {[%clk 0:02:39]}  exd5 {[%clk 0:02:54]} 7. Nf3 {[%clk 0:02:39]}  Nf6 {[%clk 0:02:53]} 8. Bg5 {[%clk 0:02:38]}  Be7 {[%clk 0:02:50]} 9. e3 {[%clk 0:02:37]}  h6 {[%clk 0:02:49]} 10. Bh4 {[%clk 0:02:36]}  O-O {[%clk 0:02:47]} 11. Be2 {[%clk 0:02:34]}  Be6 {[%clk 0:02:44]} 12. O-O {[%clk 0:02:33]}  Qb6 {[%clk 0:02:44]} 13. Qb5 {[%clk 0:02:27]}  g5 {[%clk 0:02:40]} 14. Bg3 {[%clk 0:02:26]}  Ne4 {[%clk 0:02:38]} 15. Qxb6 {[%clk 0:02:21]}  axb6 {[%clk 0:02:38]} 16. Nxe4 {[%clk 0:02:10]}  dxe4 {[%clk 0:02:39]} 17. Nd2 {[%clk 0:02:10]}  f5 {[%clk 0:02:37]} 18. Bc7 {[%clk 0:02:10]}  Bc5 {[%clk 0:02:22]} 19. Nc4 {[%clk 0:01:51]}  b5 {[%clk 0:02:02]} 20. Nd6 {[%clk 0:01:25]}  Bxd6 {[%clk 0:01:34]} 21. Bxd6 {[%clk 0:01:25]}  Rfd8 {[%clk 0:01:34]} 22. Rfd1 {[%clk 0:01:20]}  Bc4 {[%clk 0:01:29]} 23. Kf1 {[%clk 0:01:11]}  Rd7 {[%clk 0:01:25]} 24. Bc5 {[%clk 0:00:51]}  Rxd1+ {[%clk 0:01:21]} 25. Rxd1 {[%clk 0:00:50]}  Bxe2+ {[%clk 0:01:17]} 26. Kxe2 {[%clk 0:00:49]}  Rxa2 {[%clk 0:01:18]} 27. Rd2 {[%clk 0:00:46]}  b4 {[%clk 0:01:10]} 28. f4 {[%clk 0:00:33]}  g4 {[%clk 0:01:08]} 29. Kd1 {[%clk 0:00:27]}  b3 {[%clk 0:00:58]} 30. Ba3 {[%clk 0:00:25]}  b5 {[%clk 0:00:51]} 31. Bc5 {[%clk 0:00:18]}  Na5 {[%clk 0:00:46]} 32. Rd8+ {[%clk 0:00:17]}  Kf7 {[%clk 0:00:45]} 33. Bd4 {[%clk 0:00:17]}  Nc4 {[%clk 0:00:43]} 34. Rd5 {[%clk 0:00:12]}  Rxb2 {[%clk 0:00:28]} 35. Rxf5+ {[%clk 0:00:09]}  Ke6 {[%clk 0:00:27]} 36. Rf6+ {[%clk 0:00:08]}  Ke7 {[%clk 0:00:27]} 37. Bxb2 {[%clk 0:00:02]}  Nxb2+ {[%clk 0:00:28]} 38. Kc1 {[%clk 0:00:01]}  Nd3+ {[%clk 0:00:28]} 0-1


[Site "https://www.chess.com"]